[Event "*** MasterClass Titled Tuesday Blitz"]
[Site "Chess.com"]
[Date "2017.08.01"]
[Round "10"]
[White "Bryakin_Mikhail"]
[Black "silverback96"]
[Result "1-0"]
[WhiteElo "2504"]
[BlackElo "2119"]
[TimeControl "180+2"]
[EndTime "15:14:10 PDT"]
[Termination "Bryakin_Mikhail won by resignation"]

1. d4 {[%clk 0:03:01.9]} 1... Nf6 {[%clk 0:02:58.7]} 2. Bg5 {[%clk 0:03:01.8]}
2... c5 {[%clk 0:03:00.6]} 3. Bxf6 {[%clk 0:03:02.3]} 3... gxf6 {[%clk
0:03:01.4]} 4. d5 {[%clk 0:03:03.7]} 4... e6 {[%clk 0:03:01.5]} 5. c4 {[%clk
0:03:04.6]} 5... b5 {[%clk 0:03:00.9]} 6. cxb5 {[%clk 0:03:04.4]} 6... a6 {[%clk
0:03:00.9]} 7. e3 {[%clk 0:03:04.9]} 7... axb5 {[%clk 0:02:56.6]} 8. Bxb5 {[%clk
0:03:06.8]} 8... Qa5+ {[%clk 0:02:57.9]} 9. Nc3 {[%clk 0:03:08.2]} 9... Bb7
{[%clk 0:02:59.9]} 10. Ne2 {[%clk 0:03:02.1]} 10... Bxd5 {[%clk 0:03:00.4]} 11.
O-O {[%clk 0:03:03.3]} 11... Bc6 {[%clk 0:03:00.5]} 12. Bxc6 {[%clk 0:02:57.4]}
12... Nxc6 {[%clk 0:03:03.1]} 13. Ne4 {[%clk 0:02:59]} 13... Be7 {[%clk
0:03:04.5]} 14. Nd6+ {[%clk 0:02:58.8]} 14... Bxd6 {[%clk 0:03:05.5]} 15. Qxd6
{[%clk 0:02:59.7]} 15... Qa6 {[%clk 0:03:06.7]} 16. Nc3 {[%clk 0:02:55.6]} 16...
Ne5 {[%clk 0:02:58.2]} 17. Qxc5 {[%clk 0:02:53.5]} 17... Rc8 {[%clk 0:02:59.3]}
18. Qb4 {[%clk 0:02:47.8]} 18... Rc4 {[%clk 0:03:00.4]} 19. Qb8+ {[%clk
0:02:48.2]} 19... Rc8 {[%clk 0:03:01.1]} 20. Qb5 {[%clk 0:02:49.2]} 20... Qxb5
{[%clk 0:02:55.3]} 21. Nxb5 {[%clk 0:02:51.1]} 21... Rb8 {[%clk 0:02:49.2]} 22.
a4 {[%clk 0:02:51.6]} 22... d5 {[%clk 0:02:50.4]} 23. Rfc1 {[%clk 0:02:51.2]}
23... Nc4 {[%clk 0:02:50.3]} 24. b3 {[%clk 0:02:50.6]} 24... Nd2 {[%clk
0:02:51.7]} 25. Rc3 {[%clk 0:02:47.6]} 25... O-O {[%clk 0:02:51.4]} 26. f3
{[%clk 0:02:48.1]} 26... Rfc8 {[%clk 0:02:43.4]} 27. Rac1 {[%clk 0:02:49.2]}
27... Rxc3 {[%clk 0:02:44]} 28. Rxc3 {[%clk 0:02:51]} 28... e5 {[%clk
0:02:23.3]} 29. Rd3 {[%clk 0:02:50.8]} 29... Nb1 {[%clk 0:02:24]} 30. Rxd5
{[%clk 0:02:51.4]} 30... Rc8 {[%clk 0:02:22.6]} 31. a5 {[%clk 0:02:50.3]} 31...
Rc1+ {[%clk 0:02:14.3]} 32. Kf2 {[%clk 0:02:51.2]} 32... Rc2+ {[%clk 0:02:16.2]}
33. Kg3 {[%clk 0:02:52.6]} 33... Ra2 {[%clk 0:02:17.4]} 34. b4 {[%clk
0:02:50.3]} 34... Kg7 {[%clk 0:02:14.3]} 35. Nc7 {[%clk 0:02:39.3]} 35... Nc3
{[%clk 0:02:11.6]} 36. Rd3 {[%clk 0:02:38.5]} 36... Ne2+ {[%clk 0:02:12.5]} 37.
Kh4 {[%clk 0:02:39.3]} 37... Kg6 {[%clk 0:01:59.5]} 38. Ne8 {[%clk 0:02:38.8]}
38... Rc2 {[%clk 0:01:28.2]} 39. Rd6 {[%clk 0:02:31.1]} 39... Rc4+ {[%clk
0:01:29.2]} 40. e4 {[%clk 0:02:32.6]} 40... h6 {[%clk 0:01:29]} 41. Rxf6+ {[%clk
0:02:33.5]} 41... Kh7 {[%clk 0:01:30.1]} 42. Rxf7+ {[%clk 0:02:34.9]} 42... Kg8
{[%clk 0:01:31.6]} 43. Rb7 {[%clk 0:02:36]} 43... Rc6 {[%clk 0:01:23.9]} 44. b5
{[%clk 0:02:35.3]} 44... Rg6 {[%clk 0:01:25.8]} 45. g4 {[%clk 0:02:28.9]} 45...
h5 {[%clk 0:01:24.7]} 46. g5 {[%clk 0:02:27.7]} 1-0

[Event "*** MasterClass Titled Tuesday Blitz"]
[Site "Chess.com"]
[Date "2017.08.01"]
[Round "10"]
[White "MartinMatthiesen"]
[Black "DiamondCrusher22"]
[Result "1-0"]
[WhiteElo "2227"]
[BlackElo "2063"]
[TimeControl "180+2"]
[EndTime "15:14:31 PDT"]
[Termination "MartinMatthiesen won by resignation"]

1. d4 {[%clk 0:03:01.7]} 1... d5 {[%clk 0:03:00.9]} 2. Bf4 {[%clk 0:03:00.6]}
2... Nf6 {[%clk 0:03:01.3]} 3. e3 {[%clk 0:03:01.3]} 3... Bf5 {[%clk 0:02:59.1]}
4. c4 {[%clk 0:03:01.4]} 4... c6 {[%clk 0:02:59.5]} 5. Nc3 {[%clk 0:03:01.6]}
5... e6 {[%clk 0:02:58.9]} 6. Qb3 {[%clk 0:03:00.2]} 6... Qb6 {[%clk 0:02:59]}
7. c5 {[%clk 0:03:01]} 7... Qxb3 {[%clk 0:02:56.7]} 8. axb3 {[%clk 0:03:02.9]}
8... Nbd7 {[%clk 0:02:43.3]} 9. h3 {[%clk 0:03:00.7]} 9... Be7 {[%clk 0:02:26]}
10. b4 {[%clk 0:02:55.9]} 10... O-O {[%clk 0:02:08.4]} 11. b5 {[%clk 0:02:49]}
11... h6 {[%clk 0:01:52.3]} 12. bxc6 {[%clk 0:02:41.2]} 12... bxc6 {[%clk
0:01:53.4]} 13. Ba6 {[%clk 0:02:42.4]} 13... e5 {[%clk 0:01:23.9]} 14. dxe5
{[%clk 0:02:37.7]} 14... Nh5 {[%clk 0:01:16.8]} 15. Bh2 {[%clk 0:02:37.5]} 15...
Nxc5 {[%clk 0:01:17.9]} 16. g4 {[%clk 0:02:36.3]} 16... Bd3 {[%clk 0:00:38.6]}
17. Bxd3 {[%clk 0:02:28.8]} 17... Nxd3+ {[%clk 0:00:39.7]} 18. Ke2 {[%clk
0:02:30.4]} 18... Nxb2 {[%clk 0:00:38]} 19. gxh5 {[%clk 0:02:30.8]} 19... a5
{[%clk 0:00:28.2]} 20. Nf3 {[%clk 0:02:26.5]} 20... a4 {[%clk 0:00:27.3]} 21.
Nd4 {[%clk 0:02:17.6]} 21... Rfc8 {[%clk 0:00:22.1]} 22. Ra2 {[%clk 0:01:50.7]}
22... a3 {[%clk 0:00:14.2]} 23. Rb1 {[%clk 0:01:45.6]} 23... Nc4 {[%clk
0:00:13.6]} 24. Rb7 {[%clk 0:01:36.8]} 24... Bc5 {[%clk 0:00:12.9]} 25. e6
{[%clk 0:01:35.7]} 25... Bxd4 {[%clk 0:00:09.7]} 26. exf7+ {[%clk 0:01:35.7]}
26... Kf8 {[%clk 0:00:11]} 27. exd4 {[%clk 0:01:37.3]} 27... Rd8 {[%clk
0:00:06.1]} 28. Kd3 {[%clk 0:01:31.5]} 28... Nb2+ {[%clk 0:00:06.1]} 29. Kc2
{[%clk 0:01:28.7]} 29... Nc4 {[%clk 0:00:07.2]} 30. Ne2 {[%clk 0:01:23.3]} 30...
Ra4 {[%clk 0:00:05.3]} 31. Nf4 {[%clk 0:01:22.9]} 31... Ne3+ {[%clk 0:00:02.5]}
32. fxe3 {[%clk 0:01:22.9]} 32... Rc4+ {[%clk 0:00:03.7]} 33. Kd3 {[%clk
0:01:23]} 1-0

[Event "*** MasterClass Titled Tuesday Blitz"]
[Site "Chess.com"]
[Date "2017.08.01"]
[Round "10"]
[White "Grootneus"]
[Black "attack2mateU"]
[Result "0-1"]
[WhiteElo "2056"]
[BlackElo "2484"]
[TimeControl "180+2"]
[EndTime "15:14:34 PDT"]
[Termination "attack2mateU won by resignation"]

1. e4 {[%clk 0:03:01.9]} 1... c5 {[%clk 0:03:00.3]} 2. c3 {[%clk 0:03:02]} 2...
d5 {[%clk 0:03:00.6]} 3. exd5 {[%clk 0:03:03.9]} 3... Qxd5 {[%clk 0:03:01.1]} 4.
d4 {[%clk 0:03:05.6]} 4... Nc6 {[%clk 0:03:02.4]} 5. Nf3 {[%clk 0:03:06.6]} 5...
Bf5 {[%clk 0:03:03.2]} 6. Be2 {[%clk 0:03:04.6]} 6... cxd4 {[%clk 0:02:18.8]} 7.
cxd4 {[%clk 0:03:01.7]} 7... Bxb1 {[%clk 0:02:19.2]} 8. Rxb1 {[%clk 0:03:03.6]}
8... Nf6 {[%clk 0:02:19.2]} 9. O-O {[%clk 0:02:58.9]} 9... e6 {[%clk 0:02:20.1]}
10. b3 {[%clk 0:02:46.7]} 10... Bd6 {[%clk 0:02:19.8]} 11. Be3 {[%clk 0:02:23]}
11... O-O {[%clk 0:02:17.5]} 12. Bc4 {[%clk 0:02:19.4]} 12... Qh5 {[%clk
0:02:16.3]} 13. h3 {[%clk 0:02:19.1]} 13... Nd5 {[%clk 0:02:02.8]} 14. Nd2
{[%clk 0:01:59.4]} 14... Qxd1 {[%clk 0:01:57.9]} 15. Rfxd1 {[%clk 0:02:01.3]}
15... Nc3 {[%clk 0:01:56.8]} 16. Rbc1 {[%clk 0:01:54.3]} 16... Nxd1 {[%clk
0:01:57.2]} 17. Rxd1 {[%clk 0:01:56.2]} 17... Ne7 {[%clk 0:01:52.1]} 18. Ne4
{[%clk 0:01:53.6]} 18... Bb4 {[%clk 0:01:51.7]} 19. Bc1 {[%clk 0:01:49.1]} 19...
Nd5 {[%clk 0:01:42]} 20. Bb2 {[%clk 0:01:47.2]} 20... Rfd8 {[%clk 0:01:41]} 21.
a3 {[%clk 0:01:47.1]} 21... Be7 {[%clk 0:01:41.2]} 22. Kf1 {[%clk 0:01:44.6]}
22... Rac8 {[%clk 0:01:41.7]} 23. Ke2 {[%clk 0:01:44.1]} 23... a6 {[%clk
0:01:40]} 24. g3 {[%clk 0:01:44.6]} 24... b5 {[%clk 0:01:39.5]} 25. Bd3 {[%clk
0:01:45]} 25... f5 {[%clk 0:01:40.8]} 26. Nd2 {[%clk 0:01:40.7]} 26... Nc3+
{[%clk 0:01:40.6]} 27. Bxc3 {[%clk 0:01:40.3]} 27... Rxc3 {[%clk 0:01:42.5]} 28.
a4 {[%clk 0:01:28.1]} 28... Rxd4 {[%clk 0:01:31.2]} 29. Nf3 {[%clk 0:01:29.4]}
29... Rb4 {[%clk 0:01:31.8]} 30. axb5 {[%clk 0:01:30.3]} 30... axb5 {[%clk
0:01:33.7]} 31. Ne5 {[%clk 0:01:22.8]} 31... Bf6 {[%clk 0:01:33.3]} 32. Nd7
{[%clk 0:01:18.7]} 32... Rbxb3 {[%clk 0:01:32.3]} 33. Bb1 {[%clk 0:00:56.1]}
33... Kf7 {[%clk 0:01:31.2]} 34. Kf1 {[%clk 0:00:50.4]} 34... Rb2 {[%clk
0:01:27.7]} 35. Nb6 {[%clk 0:00:41.9]} 35... Rf3 {[%clk 0:01:22.5]} 36. Rd7+
{[%clk 0:00:36.9]} 36... Ke8 {[%clk 0:01:20.9]} 0-1

[Event "*** MasterClass Titled Tuesday Blitz"]
[Site "Chess.com"]
[Date "2017.08.01"]
[Round "10"]
[White "axlbvRR"]
[Black "Big_Fishy"]
[Result "0-1"]
[WhiteElo "1974"]
[BlackElo "2227"]
[TimeControl "180+2"]
[EndTime "15:14:37 PDT"]
[Termination "Big_Fishy won by resignation"]

1. d4 {[%clk 0:03:01.9]} 1... Nf6 {[%clk 0:03:00.2]} 2. Nf3 {[%clk 0:03:03.3]}
2... g6 {[%clk 0:03:01.5]} 3. Bf4 {[%clk 0:03:03.4]} 3... Bg7 {[%clk 0:03:02.7]}
4. e3 {[%clk 0:03:04.7]} 4... d6 {[%clk 0:03:04.1]} 5. Be2 {[%clk 0:03:06.1]}
5... O-O {[%clk 0:03:05.5]} 6. O-O {[%clk 0:03:07]} 6... Nbd7 {[%clk 0:03:06.5]}
7. h3 {[%clk 0:03:06.4]} 7... b6 {[%clk 0:03:05.2]} 8. c4 {[%clk 0:03:07.4]}
8... Bb7 {[%clk 0:03:06.7]} 9. Nc3 {[%clk 0:03:07.7]} 9... Re8 {[%clk
0:03:05.6]} 10. b4 {[%clk 0:03:01.8]} 10... e5 {[%clk 0:03:05.8]} 11. Bh2 {[%clk
0:03:02.3]} 11... a5 {[%clk 0:03:05.9]} 12. a3 {[%clk 0:03:01.9]} 12... axb4
{[%clk 0:03:01.9]} 13. axb4 {[%clk 0:03:02.7]} 13... Rxa1 {[%clk 0:03:03.3]} 14.
Qxa1 {[%clk 0:03:03.3]} 14... e4 {[%clk 0:03:01.2]} 15. Nd2 {[%clk 0:02:50.1]}
15... h5 {[%clk 0:02:57.4]} 16. c5 {[%clk 0:02:43.7]} 16... dxc5 {[%clk
0:02:56.8]} 17. bxc5 {[%clk 0:02:44.1]} 17... bxc5 {[%clk 0:02:56.7]} 18. Qa7
{[%clk 0:02:40.1]} 18... cxd4 {[%clk 0:02:49.8]} 19. exd4 {[%clk 0:02:28.8]}
19... Qa8 {[%clk 0:02:45.3]} 20. Qxa8 {[%clk 0:02:20.9]} 20... Rxa8 {[%clk
0:02:45.8]} 21. Bxc7 {[%clk 0:02:22.3]} 21... Nd5 {[%clk 0:02:35.8]} 22. Nxd5
{[%clk 0:02:12]} 22... Bxd5 {[%clk 0:02:37.2]} 23. Bc4 {[%clk 0:01:31.9]} 23...
Bxc4 {[%clk 0:02:19]} 24. Nxc4 {[%clk 0:01:31.4]} 24... Rc8 {[%clk 0:02:08.5]}
25. Bf4 {[%clk 0:01:02.4]} 25... Rxc4 {[%clk 0:02:07.4]} 26. Be3 {[%clk
0:01:04.3]} 26... Bxd4 {[%clk 0:02:03.6]} 27. Rd1 {[%clk 0:01:03.4]} 27... Bxe3
{[%clk 0:02:04.1]} 28. Rxd7 {[%clk 0:01:04.8]} 28... Rc1+ {[%clk 0:02:03]} 29.
Kh2 {[%clk 0:01:05.6]} 29... Bxf2 {[%clk 0:02:03.7]} 30. Re7 {[%clk 0:01:07.5]}
30... e3 {[%clk 0:02:01.1]} 31. Re4 {[%clk 0:01:08.4]} 31... h4 {[%clk
0:02:01.4]} 32. g4 {[%clk 0:01:02.2]} 32... hxg3+ {[%clk 0:01:58.9]} 33. Kg2
{[%clk 0:01:00.1]} 33... Kg7 {[%clk 0:01:42]} 34. h4 {[%clk 0:00:59.4]} 34... f5
{[%clk 0:01:38.9]} 35. Re7+ {[%clk 0:00:59.3]} 35... Kf6 {[%clk 0:01:39.8]} 36.
Rh7 {[%clk 0:00:59.9]} 36... Ke5 {[%clk 0:01:36.5]} 37. Kf3 {[%clk 0:01:00]}
37... Rc2 {[%clk 0:01:29.5]} 38. Re7+ {[%clk 0:00:58.4]} 38... Kf6 {[%clk
0:01:30.2]} 39. Rh7 {[%clk 0:00:58.4]} 39... e2 {[%clk 0:01:30.7]} 40. Kg2
{[%clk 0:00:55.3]} 40... e1=Q {[%clk 0:01:28.8]} 41. h5 {[%clk 0:00:50.9]} 41...
Qe4+ {[%clk 0:01:28.2]} 42. Kh3 {[%clk 0:00:51.1]} 42... Qg4+ {[%clk 0:01:26.7]}
43. Kg2 {[%clk 0:00:51.4]} 43... Bd4+ {[%clk 0:01:28]} 0-1

[Event "*** MasterClass Titled Tuesday Blitz"]
[Site "Chess.com"]
[Date "2017.08.01"]
[Round "10"]
[White "KyronGriffith"]
[Black "Blitzking4444"]
[Result "1-0"]
[WhiteElo "2350"]
[BlackElo "2149"]
[TimeControl "180+2"]
[EndTime "15:15:10 PDT"]
[Termination "KyronGriffith won on time"]

1. e4 {[%clk 0:03:01.9]} 1... e6 {[%clk 0:03:00.8]} 2. d4 {[%clk 0:03:02.5]}
2... d5 {[%clk 0:03:01.3]} 3. Nd2 {[%clk 0:03:04.1]} 3... Be7 {[%clk 0:03:01.8]}
4. Ngf3 {[%clk 0:03:04.4]} 4... Nf6 {[%clk 0:03:02.7]} 5. e5 {[%clk 0:03:05.5]}
5... Nfd7 {[%clk 0:03:04.2]} 6. Bd3 {[%clk 0:03:04.6]} 6... c5 {[%clk
0:03:05.6]} 7. c3 {[%clk 0:03:06.2]} 7... Nc6 {[%clk 0:03:07]} 8. O-O {[%clk
0:03:07.3]} 8... a5 {[%clk 0:03:06.9]} 9. Re1 {[%clk 0:03:07.6]} 9... cxd4
{[%clk 0:03:07.7]} 10. cxd4 {[%clk 0:03:07.5]} 10... Qb6 {[%clk 0:03:09.1]} 11.
Nb1 {[%clk 0:02:45.1]} 11... Nxd4 {[%clk 0:03:08.3]} 12. Nxd4 {[%clk 0:02:41.4]}
12... Qxd4 {[%clk 0:03:10.2]} 13. Nc3 {[%clk 0:02:42.9]} 13... Qb6 {[%clk
0:02:51.2]} 14. Qg4 {[%clk 0:02:35.2]} 14... g6 {[%clk 0:02:51.5]} 15. Bg5
{[%clk 0:02:23.6]} 15... Bxg5 {[%clk 0:02:26.6]} 16. Qxg5 {[%clk 0:02:25.5]}
16... O-O {[%clk 0:02:27.7]} 17. Nb5 {[%clk 0:02:20.7]} 17... Nc5 {[%clk
0:02:22.1]} 18. Qe3 {[%clk 0:02:04.8]} 18... Na4 {[%clk 0:02:08.9]} 19. Qf4
{[%clk 0:01:31.7]} 19... Nxb2 {[%clk 0:02:07.6]} 20. Bf1 {[%clk 0:01:33.2]}
20... Bd7 {[%clk 0:01:37.9]} 21. Rab1 {[%clk 0:01:23.9]} 21... Nc4 {[%clk
0:01:23.4]} 22. Nd6 {[%clk 0:01:18.1]} 22... Qc6 {[%clk 0:01:17.4]} 23. Rec1
{[%clk 0:00:59]} 23... b5 {[%clk 0:00:16.8]} 24. Rxb5 {[%clk 0:00:52.1]} 24...
Qa6 {[%clk 0:00:13.9]} 25. Bxc4 {[%clk 0:00:51]} 25... dxc4 {[%clk 0:00:12.2]}
26. Rc5 {[%clk 0:00:44.5]} 26... Bc6 {[%clk 0:00:08.2]} 27. R5xc4 {[%clk
0:00:36.8]} 27... Bd5 {[%clk 0:00:09]} 28. R4c3 {[%clk 0:00:37.5]} 28... f6
{[%clk 0:00:03.9]} 29. exf6 {[%clk 0:00:36.4]} 29... Rad8 {[%clk 0:00:04]} 30.
f7+ {[%clk 0:00:37.1]} 30... Kg7 {[%clk 0:00:02.9]} 31. Qe5+ {[%clk 0:00:37.6]}
1-0

[Event "*** MasterClass Titled Tuesday Blitz"]
[Site "Chess.com"]
[Date "2017.08.01"]
[Round "10"]
[White "josiwales"]
[Black "ChessQueen"]
[Result "0-1"]
[WhiteElo "2294"]
[BlackElo "2577"]
[TimeControl "180+2"]
[EndTime "15:15:38 PDT"]
[Termination "ChessQueen won by resignation"]

1. e4 {[%clk 0:03:01.9]} 1... c5 {[%clk 0:02:59.8]} 2. Nc3 {[%clk 0:03:02.3]}
2... e6 {[%clk 0:02:59.6]} 3. g3 {[%clk 0:03:03.7]} 3... d5 {[%clk 0:03:00.3]}
4. exd5 {[%clk 0:03:04.9]} 4... exd5 {[%clk 0:03:01.3]} 5. Bg2 {[%clk
0:03:06.9]} 5... d4 {[%clk 0:03:01.5]} 6. Nce2 {[%clk 0:03:06.5]} 6... Nf6
{[%clk 0:03:00.6]} 7. d3 {[%clk 0:03:07.5]} 7... Be7 {[%clk 0:03:00]} 8. c3
{[%clk 0:03:04.8]} 8... dxc3 {[%clk 0:02:54.1]} 9. bxc3 {[%clk 0:03:01.3]} 9...
O-O {[%clk 0:02:54.1]} 10. Be3 {[%clk 0:02:57.6]} 10... Nc6 {[%clk 0:02:53.7]}
11. Nf3 {[%clk 0:02:56.4]} 11... Bf5 {[%clk 0:02:54.5]} 12. Nf4 {[%clk
0:02:51.6]} 12... Ng4 {[%clk 0:02:48.9]} 13. O-O {[%clk 0:02:50.2]} 13... g5
{[%clk 0:02:41.9]} 14. Ne2 {[%clk 0:02:23.9]} 14... Nxe3 {[%clk 0:02:40.7]} 15.
fxe3 {[%clk 0:02:23.7]} 15... Qxd3 {[%clk 0:02:42.2]} 16. Kh1 {[%clk 0:02:17.8]}
16... Qxd1 {[%clk 0:02:40.2]} 17. Raxd1 {[%clk 0:02:19.7]} 17... Be6 {[%clk
0:02:40.3]} 18. Rd2 {[%clk 0:02:12.6]} 18... Rad8 {[%clk 0:02:41.1]} 19. Rfd1
{[%clk 0:02:12.8]} 19... Rxd2 {[%clk 0:02:41.9]} 20. Rxd2 {[%clk 0:02:14.7]}
20... Rd8 {[%clk 0:02:43]} 21. Rxd8+ {[%clk 0:02:13.5]} 21... Nxd8 {[%clk
0:02:43.5]} 22. Ne5 {[%clk 0:02:12.3]} 22... Bxa2 {[%clk 0:02:38.2]} 23. Be4
{[%clk 0:02:02.4]} 23... Be6 {[%clk 0:02:35.6]} 24. Kg2 {[%clk 0:02:00.3]} 24...
Bd6 {[%clk 0:02:28.3]} 25. Nf3 {[%clk 0:01:58.7]} 25... h6 {[%clk 0:02:24.2]}
26. h3 {[%clk 0:01:53.1]} 26... f5 {[%clk 0:02:24]} 27. Bd3 {[%clk 0:01:53.6]}
27... Nc6 {[%clk 0:02:21.6]} 28. e4 {[%clk 0:01:49.2]} 28... fxe4 {[%clk
0:02:19.9]} 29. Bxe4 {[%clk 0:01:51.1]} 29... Bd7 {[%clk 0:02:19.5]} 30. Nd2
{[%clk 0:01:51.6]} 30... b5 {[%clk 0:02:16.4]} 31. Bd5+ {[%clk 0:01:51.4]} 31...
Kg7 {[%clk 0:02:15.6]} 32. Ne4 {[%clk 0:01:52.9]} 32... Be7 {[%clk 0:02:16.8]}
33. g4 {[%clk 0:01:50.4]} 33... a5 {[%clk 0:02:15.1]} 34. Kf3 {[%clk 0:01:40.6]}
34... Ne5+ {[%clk 0:01:59.2]} 35. Ke3 {[%clk 0:01:41.4]} 35... b4 {[%clk
0:01:59.9]} 36. cxb4 {[%clk 0:01:39.9]} 36... axb4 {[%clk 0:01:57.8]} 37. Kd2
{[%clk 0:01:38]} 37... Bb5 {[%clk 0:01:51.5]} 38. N2g3 {[%clk 0:01:37.3]} 38...
Nf3+ {[%clk 0:01:49]} 39. Kc1 {[%clk 0:01:32.8]} 39... Nd4 {[%clk 0:01:48]} 40.
Kb2 {[%clk 0:01:24.6]} 40... c4 {[%clk 0:01:42.4]} 41. Nh5+ {[%clk 0:01:15.5]}
41... Kg6 {[%clk 0:01:32.2]} 42. Nhg3 {[%clk 0:01:08.9]} 42... Bf8 {[%clk
0:01:30.4]} 43. Bg8 {[%clk 0:00:55.2]} 43... Bg7 {[%clk 0:01:21.2]} 44. Kb1
{[%clk 0:00:43.7]} 44... c3 {[%clk 0:01:21.1]} 45. Nd6 {[%clk 0:00:39.7]} 45...
Bd3+ {[%clk 0:01:20.9]} 46. Kc1 {[%clk 0:00:38.4]} 46... Be5 {[%clk 0:01:21.1]}
47. Nde4 {[%clk 0:00:32.5]} 47... Bf4+ {[%clk 0:01:20.2]} 48. Kd1 {[%clk
0:00:32.1]} 48... c2+ {[%clk 0:01:20.9]} 0-1

[Event "*** MasterClass Titled Tuesday Blitz"]
[Site "Chess.com"]
[Date "2017.08.01"]
[Round "10"]
[White "TregubovP"]
[Black "oskariot"]
[Result "1-0"]
[WhiteElo "2525"]
[BlackElo "2492"]
[TimeControl "180+2"]
[EndTime "15:15:59 PDT"]
[Termination "TregubovP won by resignation"]

1. d4 {[%clk 0:03:01.9]} 1... g6 {[%clk 0:02:59.4]} 2. c4 {[%clk 0:02:59.4]}
2... Bg7 {[%clk 0:02:59.4]} 3. Nf3 {[%clk 0:03:01]} 3... c5 {[%clk 0:02:59.7]}
4. d5 {[%clk 0:03:00.8]} 4... b5 {[%clk 0:02:57.8]} 5. e4 {[%clk 0:03:01.2]}
5... bxc4 {[%clk 0:02:56.5]} 6. Bxc4 {[%clk 0:03:01.5]} 6... d6 {[%clk 0:02:58]}
7. O-O {[%clk 0:03:01.7]} 7... Nf6 {[%clk 0:02:59.2]} 8. Nc3 {[%clk 0:03:01.6]}
8... O-O {[%clk 0:02:59.7]} 9. h3 {[%clk 0:03:02.2]} 9... Nfd7 {[%clk
0:02:52.8]} 10. a4 {[%clk 0:03:00.3]} 10... Ba6 {[%clk 0:02:53]} 11. Bb5 {[%clk
0:02:54.1]} 11... Qc8 {[%clk 0:02:24]} 12. Bg5 {[%clk 0:02:46.3]} 12... Re8
{[%clk 0:02:24.2]} 13. Re1 {[%clk 0:02:42.7]} 13... Qb7 {[%clk 0:02:07.2]} 14.
Qd3 {[%clk 0:02:36.2]} 14... Bxb5 {[%clk 0:02:00.1]} 15. axb5 {[%clk 0:02:35.7]}
15... a6 {[%clk 0:02:01.4]} 16. Ra5 {[%clk 0:01:57.8]} 16... axb5 {[%clk
0:01:56.1]} 17. Qxb5 {[%clk 0:01:59.4]} 17... Qxb5 {[%clk 0:01:49.4]} 18. Rxb5
{[%clk 0:02:00.8]} 18... Ra7 {[%clk 0:01:32.3]} 19. Nd2 {[%clk 0:01:55.2]} 19...
Ne5 {[%clk 0:01:29.6]} 20. Re3 {[%clk 0:01:36.1]} 20... h6 {[%clk 0:01:18.3]}
21. Bf4 {[%clk 0:01:35.5]} 21... Nbd7 {[%clk 0:01:19.2]} 22. Bg3 {[%clk
0:01:24]} 22... g5 {[%clk 0:01:19.8]} 23. f4 {[%clk 0:01:18.5]} 23... gxf4
{[%clk 0:01:15.3]} 24. Bxf4 {[%clk 0:01:19.7]} 24... Ng6 {[%clk 0:01:16.3]} 25.
Rf3 {[%clk 0:01:17.3]} 25... Nxf4 {[%clk 0:01:07.7]} 26. Rxf4 {[%clk 0:01:18.2]}
26... Ne5 {[%clk 0:01:06.4]} 27. Nf3 {[%clk 0:01:07.3]} 27... Ra1+ {[%clk
0:01:07]} 28. Kh2 {[%clk 0:01:06.3]} 28... Nxf3+ {[%clk 0:01:06.9]} 29. Rxf3
{[%clk 0:01:07.2]} 29... Be5+ {[%clk 0:01:07.8]} 30. g3 {[%clk 0:01:08.5]} 30...
Rc1 {[%clk 0:01:05.2]} 31. h4 {[%clk 0:01:07.8]} 31... Ra8 {[%clk 0:00:59]} 32.
Kh3 {[%clk 0:01:06.3]} 32... h5 {[%clk 0:00:48.1]} 33. Rf5 {[%clk 0:01:05.8]}
33... Rh1+ {[%clk 0:00:30]} 34. Kg2 {[%clk 0:01:06]} 34... Raa1 {[%clk
0:00:31.7]} 35. Rg5+ {[%clk 0:01:05]} 35... Kh7 {[%clk 0:00:30.1]} 36. Rxh5+
{[%clk 0:01:05.9]} 36... Kg6 {[%clk 0:00:27.6]} 37. Rg5+ {[%clk 0:01:06.9]}
37... Kh7 {[%clk 0:00:28.8]} 38. Rb7 {[%clk 0:01:02.6]} 38... Rag1+ {[%clk
0:00:26.1]} 39. Kf3 {[%clk 0:01:01.4]} 39... Bf6 {[%clk 0:00:23.1]} 40. Rf5
{[%clk 0:00:56.2]} 40... Kg6 {[%clk 0:00:14.5]} 41. Ne2 {[%clk 0:00:55]} 41...
Rf1+ {[%clk 0:00:15.8]} 42. Kg4 {[%clk 0:00:56]} 42... Rxf5 {[%clk 0:00:17]} 43.
exf5+ {[%clk 0:00:56.5]} 43... Kh7 {[%clk 0:00:15.5]} 44. Nf4 {[%clk 0:00:56.1]}
44... Rb1 {[%clk 0:00:15.6]} 45. Nh5 {[%clk 0:00:56.2]} 45... Rd1 {[%clk
0:00:11.1]} 46. Nxf6+ {[%clk 0:00:56.3]} 46... exf6 {[%clk 0:00:12]} 47. Rxf7+
{[%clk 0:00:57]} 1-0